[Event "Titled Tuesday Blitz July 4 Early 2023"]
[White "HeinichessPY"]
[Black "Semenova, Alina"]
[BlackFideId "24113875"]
[WhiteElo "2151"]
[BlackElo "2052"]
[Result "0-1"]
[Round "6"]
[TimeControl "180+2"]
[Date "2023.07.04"]
[WhiteClock "0:00:00"]
[BlackClock "0:00:01"]
[Board "205"]

1. e4 {[%clk 0:02:51]}  e5 {[%clk 0:02:57]} 2. Nf3 {[%clk 0:02:47]}  Nf6 {[%clk 0:02:57]} 3. Nxe5 {[%clk 0:02:46]}  d6 {[%clk 0:02:57]} 4. Nf3 {[%clk 0:02:46]}  Nxe4 {[%clk 0:02:57]} 5. Nc3 {[%clk 0:02:45]}  Nxc3 {[%clk 0:02:56]} 6. dxc3 {[%clk 0:02:46]}  Be7 {[%clk 0:02:54]} 7. Be3 {[%clk 0:02:46]}  O-O {[%clk 0:02:54]} 8. Qd2 {[%clk 0:02:46]}  Be6 {[%clk 0:02:54]} 9. O-O-O {[%clk 0:02:46]}  Nc6 {[%clk 0:02:55]} 10. Kb1 {[%clk 0:02:46]}  Bf6 {[%clk 0:02:55]} 11. Ng5 {[%clk 0:02:17]}  a5 {[%clk 0:02:47]} 12. Bd3 {[%clk 0:02:11]}  h6 {[%clk 0:02:30]} 13. h4 {[%clk 0:02:00]}  a4 {[%clk 0:02:20]} 14. g4 {[%clk 0:01:53]}  a3 {[%clk 0:02:09]} 15. b3 {[%clk 0:01:48]}  Ne5 {[%clk 0:02:06]} 16. Nxe6 {[%clk 0:01:36]}  fxe6 {[%clk 0:02:06]} 17. g5 {[%clk 0:01:37]}  Nxd3 {[%clk 0:01:49]} 18. Qxd3 {[%clk 0:01:34]}  Be5 {[%clk 0:01:38]} 19. gxh6 {[%clk 0:01:26]}  c5 {[%clk 0:01:25]} 20. Rdg1 {[%clk 0:01:22]}  Rf7 {[%clk 0:01:21]} 21. Qg6 {[%clk 0:01:08]}  Qd7 {[%clk 0:00:57]} 22. h5 {[%clk 0:00:53]}  c4 {[%clk 0:00:49]} 23. Bd4 {[%clk 0:00:26]}  cxb3 {[%clk 0:00:38]} 24. cxb3 {[%clk 0:00:25]}  Rc8 {[%clk 0:00:19]} 25. Rh3 {[%clk 0:00:24]}  Bxd4 {[%clk 0:00:17]} 26. cxd4 {[%clk 0:00:23]}  Qc7 {[%clk 0:00:12]} 27. hxg7 {[%clk 0:00:18]}  Rf5 {[%clk 0:00:09]} 28. Qxe6+ {[%clk 0:00:17]}  Rf7 {[%clk 0:00:07]} 29. Qe2 {[%clk 0:00:10]}  Rxg7 {[%clk 0:00:05]} 30. Rxg7+ {[%clk 0:00:09]}  Kxg7 {[%clk 0:00:06]} 31. h6+ {[%clk 0:00:09]}  Kh8 {[%clk 0:00:05]} 32. Rh1 {[%clk 0:00:05]}  Qf7 {[%clk 0:00:03]} 33. Re1 {[%clk 0:00:02]}  Qg6+ {[%clk 0:00:02]} 34. Ka1 {[%clk 0:00:01]}  Qf6 {[%clk 0:00:01]} 35. Qe3 {[%clk 0:00:00]}  Rf8 {[%clk 0:00:01]} 0-1


[Site "https://www.chess.com"]

[Event "Titled Tuesday Blitz July 4 Early 2023"]
[White "Politov, Pavel Y."]
[Black "Suduvasachmatai"]
[WhiteFideId "24110515"]
[WhiteElo "2033"]
[BlackElo "2095"]
[Result "1-0"]
[Round "6"]
[TimeControl "180+2"]
[Date "2023.07.04"]
[WhiteClock "0:01:48"]
[BlackClock "0:01:50"]
[Board "207"]

1. e4 {[%clk 0:03:00]}  c5 {[%clk 0:02:59]} 2. Nf3 {[%clk 0:02:57]}  d6 {[%clk 0:02:59]} 3. d4 {[%clk 0:02:57]}  cxd4 {[%clk 0:03:00]} 4. Nxd4 {[%clk 0:02:57]}  Nf6 {[%clk 0:03:01]} 5. Nc3 {[%clk 0:02:57]}  a6 {[%clk 0:03:01]} 6. f3 {[%clk 0:02:50]}  e6 {[%clk 0:03:00]} 7. Be3 {[%clk 0:02:50]}  Be7 {[%clk 0:02:58]} 8. Qd2 {[%clk 0:02:48]}  O-O {[%clk 0:02:58]} 9. g4 {[%clk 0:02:47]}  Nfd7 {[%clk 0:02:54]} 10. O-O-O {[%clk 0:02:45]}  Ne5 {[%clk 0:02:53]} 11. h4 {[%clk 0:02:23]}  Nbc6 {[%clk 0:02:47]} 12. Qf2 {[%clk 0:02:11]}  Nxd4 {[%clk 0:02:40]} 13. Bxd4 {[%clk 0:02:10]}  Bf6 {[%clk 0:02:27]} 14. g5 {[%clk 0:02:04]}  Nc6 {[%clk 0:01:48]} 15. gxf6 {[%clk 0:01:57]}  Nxd4 {[%clk 0:01:49]} 16. Qxd4 {[%clk 0:01:55]}  Qxf6 {[%clk 0:01:49]} 17. Qxf6 {[%clk 0:01:54]}  gxf6 {[%clk 0:01:50]} 18. Rxd6 {[%clk 0:01:48]}  e5 {[%clk 0:01:50]} 1-0


[Site "https://www.chess.com"]

[Event "Titled Tuesday Blitz July 4 Early 2023"]
[White "Mamedov, Rauf"]
[Black "Rahman, Masruri"]
[WhiteFideId "13401653"]
[BlackFideId "7101163"]
[WhiteElo "3049"]
[BlackElo "2862"]
[Result "1-0"]
[Round "7"]
[TimeControl "180+2"]
[Date "2023.07.04"]
[WhiteClock "0:00:36"]
[BlackClock "0:00:03"]
[Board "2"]

1. e4 {[%clk 0:03:00]}  e6 {[%clk 0:02:59]} 2. d4 {[%clk 0:02:59]}  d5 {[%clk 0:02:59]} 3. Nd2 {[%clk 0:03:00]}  c5 {[%clk 0:02:59]} 4. Ngf3 {[%clk 0:03:00]}  Nf6 {[%clk 0:02:54]} 5. e5 {[%clk 0:02:58]}  Nfd7 {[%clk 0:02:53]} 6. c3 {[%clk 0:02:57]}  Nc6 {[%clk 0:02:47]} 7. Bd3 {[%clk 0:02:57]}  cxd4 {[%clk 0:02:46]} 8. cxd4 {[%clk 0:02:57]}  Qb6 {[%clk 0:02:47]} 9. O-O {[%clk 0:02:56]}  Nxd4 {[%clk 0:02:47]} 10. Nxd4 {[%clk 0:02:56]}  Qxd4 {[%clk 0:02:47]} 11. Nf3 {[%clk 0:02:57]}  Qb6 {[%clk 0:02:48]} 12. a3 {[%clk 0:02:54]}  g6 {[%clk 0:02:39]} 13. Qa4 {[%clk 0:02:54]}  Bg7 {[%clk 0:02:32]} 14. Be3 {[%clk 0:02:50]}  Qd8 {[%clk 0:02:29]} 15. Bg5 {[%clk 0:02:38]}  Qb6 {[%clk 0:02:28]} 16. Be3 {[%clk 0:02:31]}  Qd8 {[%clk 0:02:28]} 17. Bc5 {[%clk 0:02:29]}  Bf8 {[%clk 0:02:11]} 18. Bxf8 {[%clk 0:02:23]}  Kxf8 {[%clk 0:02:12]} 19. Rac1 {[%clk 0:02:22]}  Kg7 {[%clk 0:02:09]} 20. Rc3 {[%clk 0:02:19]}  b6 {[%clk 0:01:50]} 21. Qf4 {[%clk 0:02:15]}  Nc5 {[%clk 0:01:45]} 22. Nd4 {[%clk 0:01:44]}  h6 {[%clk 0:01:23]} 23. h4 {[%clk 0:01:25]}  g5 {[%clk 0:00:56]} 24. Qg3 {[%clk 0:01:21]}  Nxd3 {[%clk 0:00:42]} 25. Qxd3 {[%clk 0:01:21]}  a5 {[%clk 0:00:24]} 26. Rfc1 {[%clk 0:01:08]}  Ba6 {[%clk 0:00:23]} 27. Qf3 {[%clk 0:01:09]}  Rc8 {[%clk 0:00:15]} 28. Nc6 {[%clk 0:01:07]}  Rxc6 {[%clk 0:00:05]} 29. Rxc6 {[%clk 0:01:07]}  gxh4 {[%clk 0:00:06]} 30. Rd1 {[%clk 0:00:42]}  Rf8 {[%clk 0:00:03]} 31. Rd4 {[%clk 0:00:41]}  Kh7 {[%clk 0:00:03]} 32. Rg4 {[%clk 0:00:37]}  Bb7 {[%clk 0:00:03]} 33. Rd6 {[%clk 0:00:37]}  Qe7 {[%clk 0:00:03]} 34. Qf4 {[%clk 0:00:37]}  f5 {[%clk 0:00:03]} 35. Rxh4 {[%clk 0:00:37]}  Rg8 {[%clk 0:00:03]} 36. Qxh6# {[%clk 0:00:36]} 1-0


[Site "https://www.chess.com"]

[Event "Titled Tuesday Blitz July 4 Early 2023"]
[White "Pranav, V"]
[Black "Gholami Orimi, Mahdi"]
[WhiteFideId "25060783"]
[BlackFideId "12558486"]
[WhiteElo "3011"]
[BlackElo "2884"]
[Result "1-0"]
[Round "7"]
[TimeControl "180+2"]
[Date "2023.07.04"]
[WhiteClock "0:00:04"]
[BlackClock "0:00:07"]
[Board "4"]

1. e4 {[%clk 0:03:00]}  g6 {[%clk 0:03:00]} 2. d4 {[%clk 0:03:00]}  Bg7 {[%clk 0:03:01]} 3. Nc3 {[%clk 0:03:00]}  c6 {[%clk 0:03:01]} 4. Nf3 {[%clk 0:03:00]}  d5 {[%clk 0:03:01]} 5. h3 {[%clk 0:03:01]}  dxe4 {[%clk 0:03:01]} 6. Nxe4 {[%clk 0:03:01]}  Nf6 {[%clk 0:03:02]} 7. Nxf6+ {[%clk 0:03:01]}  exf6 {[%clk 0:03:03]} 8. Bd3 {[%clk 0:03:01]}  O-O {[%clk 0:03:03]} 9. O-O {[%clk 0:03:02]}  Nd7 {[%clk 0:03:03]} 10. c4 {[%clk 0:03:00]}  Re8 {[%clk 0:03:03]} 11. Be3 {[%clk 0:02:54]}  Nf8 {[%clk 0:03:01]} 12. Qd2 {[%clk 0:02:48]}  Be6 {[%clk 0:03:00]} 13. Rfe1 {[%clk 0:02:45]}  Qd7 {[%clk 0:02:59]} 14. b3 {[%clk 0:02:40]}  g5 {[%clk 0:02:55]} 15. Rad1 {[%clk 0:02:33]}  Rad8 {[%clk 0:02:53]} 16. Qc2 {[%clk 0:01:56]}  Qc8 {[%clk 0:02:49]} 17. h4 {[%clk 0:01:40]}  h6 {[%clk 0:02:47]} 18. hxg5 {[%clk 0:01:39]}  hxg5 {[%clk 0:02:42]} 19. Nh2 {[%clk 0:01:39]}  f5 {[%clk 0:02:16]} 20. Bxg5 {[%clk 0:01:16]}  Rxd4 {[%clk 0:02:16]} 21. Be3 {[%clk 0:01:16]}  Rh4 {[%clk 0:02:11]} 22. Nf3 {[%clk 0:01:13]}  Rg4 {[%clk 0:02:05]} 23. Bf1 {[%clk 0:01:09]}  Ng6 {[%clk 0:02:02]} 24. Bd4 {[%clk 0:01:05]}  Nf4 {[%clk 0:01:37]} 25. Bxg7 {[%clk 0:01:03]}  Rxg7 {[%clk 0:01:38]} 26. g3 {[%clk 0:00:56]}  Qc7 {[%clk 0:01:33]} 27. Qc3 {[%clk 0:00:53]}  Nh5 {[%clk 0:01:30]} 28. Qe5 {[%clk 0:00:49]}  Qb6 {[%clk 0:01:20]} 29. c5 {[%clk 0:00:41]}  Qa5 {[%clk 0:01:10]} 30. Nd4 {[%clk 0:00:27]}  f6 {[%clk 0:00:51]} 31. Qd6 {[%clk 0:00:12]}  Rd7 {[%clk 0:00:35]} 32. Nxe6 {[%clk 0:00:09]}  Rxd6 {[%clk 0:00:35]} 33. cxd6 {[%clk 0:00:10]}  Ng7 {[%clk 0:00:23]} 34. d7 {[%clk 0:00:07]}  Rd8 {[%clk 0:00:21]} 35. Nxd8 {[%clk 0:00:05]}  Qxd8 {[%clk 0:00:21]} 36. Bc4+ {[%clk 0:00:05]}  Kh7 {[%clk 0:00:22]} 37. Bf7 {[%clk 0:00:04]}  f4 {[%clk 0:00:18]} 38. Re8 {[%clk 0:00:04]}  Nxe8 {[%clk 0:00:17]} 39. dxe8=Q {[%clk 0:00:05]}  Qxd1+ {[%clk 0:00:17]} 40. Kg2 {[%clk 0:00:05]}  Qg4 {[%clk 0:00:15]} 41. Qe4+ {[%clk 0:00:05]}  Kg7 {[%clk 0:00:14]} 42. Qe7 {[%clk 0:00:04]}  f3+ {[%clk 0:00:13]} 43. Kg1 {[%clk 0:00:04]}  Qd4 {[%clk 0:00:14]} 44. Bh5+ {[%clk 0:00:04]}  Kh6 {[%clk 0:00:14]} 45. Bxf3 {[%clk 0:00:05]}  Kg5 {[%clk 0:00:10]} 46. Kg2 {[%clk 0:00:05]}  b5 {[%clk 0:00:07]} 47. Bxc6 {[%clk 0:00:04]} 1-0


[Site "https://www.chess.com"]

[Event "Titled Tuesday Blitz July 4 Early 2023"]
[White "Beerdsen, Thomas"]
[Black "Paravyan, David"]
[WhiteFideId "1030108"]
[BlackFideId "4194985"]
[WhiteElo "2840"]
[BlackElo "2987"]
[Result "0-1"]
[Round "7"]
[TimeControl "180+2"]
[Date "2023.07.04"]
[WhiteClock "0:00:30"]
[BlackClock "0:01:22"]
[Board "6"]

1. e4 {[%clk 0:03:00]}  e5 {[%clk 0:02:59]} 2. Bc4 {[%clk 0:03:01]}  Nf6 {[%clk 0:02:59]} 3. d3 {[%clk 0:03:01]}  c6 {[%clk 0:02:58]} 4. Bb3 {[%clk 0:03:01]}  a5 {[%clk 0:02:57]} 5. a4 {[%clk 0:02:59]}  d5 {[%clk 0:02:56]} 6. Nf3 {[%clk 0:02:59]}  Bb4+ {[%clk 0:02:56]} 7. Bd2 {[%clk 0:02:58]}  Bxd2+ {[%clk 0:02:54]} 8. Nbxd2 {[%clk 0:02:59]}  Nbd7 {[%clk 0:02:53]} 9. O-O {[%clk 0:03:00]}  O-O {[%clk 0:02:53]} 10. exd5 {[%clk 0:02:58]}  cxd5 {[%clk 0:02:54]} 11. Re1 {[%clk 0:02:58]}  Re8 {[%clk 0:02:52]} 12. Nf1 {[%clk 0:02:45]}  Qc7 {[%clk 0:02:48]} 13. Ne3 {[%clk 0:02:46]}  Nb6 {[%clk 0:02:45]} 14. d4 {[%clk 0:02:42]}  e4 {[%clk 0:02:42]} 15. Ne5 {[%clk 0:02:41]}  Be6 {[%clk 0:02:42]} 16. c3 {[%clk 0:02:39]}  Nfd7 {[%clk 0:02:41]} 17. f4 {[%clk 0:02:31]}  f5 {[%clk 0:02:30]} 18. Qh5 {[%clk 0:02:29]}  Nxe5 {[%clk 0:02:28]} 19. fxe5 {[%clk 0:02:28]}  f4 {[%clk 0:02:27]} 20. Nf5 {[%clk 0:02:26]}  g6 {[%clk 0:02:18]} 21. Nh6+ {[%clk 0:02:22]}  Kg7 {[%clk 0:02:19]} 22. Qg5 {[%clk 0:02:12]}  Qe7 {[%clk 0:02:19]} 23. h4 {[%clk 0:02:05]}  Qxg5 {[%clk 0:02:03]} 24. hxg5 {[%clk 0:02:06]}  Rf8 {[%clk 0:02:02]} 25. Rf1 {[%clk 0:01:36]}  Nc4 {[%clk 0:01:59]} 26. Bxc4 {[%clk 0:01:28]}  dxc4 {[%clk 0:02:00]} 27. Rae1 {[%clk 0:01:29]}  e3 {[%clk 0:01:58]} 28. Kh2 {[%clk 0:01:21]}  Ra6 {[%clk 0:01:57]} 29. g3 {[%clk 0:01:04]}  Rb6 {[%clk 0:01:32]} 30. gxf4 {[%clk 0:01:04]}  Rxb2+ {[%clk 0:01:32]} 31. Kg3 {[%clk 0:01:05]}  e2 {[%clk 0:01:32]} 32. Rf2 {[%clk 0:01:03]}  Rc2 {[%clk 0:01:29]} 33. Rf3 {[%clk 0:00:57]}  b5 {[%clk 0:01:26]} 34. axb5 {[%clk 0:00:58]}  a4 {[%clk 0:01:26]} 35. Re3 {[%clk 0:00:56]}  a3 {[%clk 0:01:25]} 36. f5 {[%clk 0:00:49]}  gxf5 {[%clk 0:01:24]} 37. R3xe2 {[%clk 0:00:47]}  f4+ {[%clk 0:01:23]} 38. Kf2 {[%clk 0:00:46]}  Rxc3 {[%clk 0:01:23]} 39. d5 {[%clk 0:00:41]}  Bxd5 {[%clk 0:01:22]} 40. e6 {[%clk 0:00:42]}  Rf3+ {[%clk 0:01:22]} 41. Kg1 {[%clk 0:00:42]}  Rg3+ {[%clk 0:01:23]} 42. Kh2 {[%clk 0:00:39]}  Rxg5 {[%clk 0:01:23]} 43. e7 {[%clk 0:00:40]}  Re8 {[%clk 0:01:23]} 44. Re5 {[%clk 0:00:34]}  Kxh6 {[%clk 0:01:23]} 45. b6 {[%clk 0:00:33]}  Rxe5 {[%clk 0:01:21]} 46. Rxe5 {[%clk 0:00:30]}  a2 {[%clk 0:01:22]} 0-1


[Site "https://www.chess.com"]

[Event "Titled Tuesday Blitz July 4 Early 2023"]
[White "Lenderman, Aleksandr"]
[Black "Samunenkov, Ihor"]
[WhiteFideId "2021285"]
[BlackFideId "14187086"]
[WhiteElo "2919"]
[BlackElo "2751"]
[Result "1/2-1/2"]
[Round "7"]
[TimeControl "180+2"]
[Date "2023.07.04"]
[WhiteClock "0:02:11"]
[BlackClock "0:00:29"]
[Board "12"]

1. Nf3 {[%clk 0:03:00]}  d5 {[%clk 0:02:58]} 2. e3 {[%clk 0:03:01]}  Nf6 {[%clk 0:02:56]} 3. c4 {[%clk 0:03:01]}  e6 {[%clk 0:02:56]} 4. Nc3 {[%clk 0:03:00]}  c6 {[%clk 0:02:54]} 5. b3 {[%clk 0:03:00]}  Bd6 {[%clk 0:02:53]} 6. Bb2 {[%clk 0:02:59]}  O-O {[%clk 0:02:54]} 7. d4 {[%clk 0:02:58]}  Nbd7 {[%clk 0:02:52]} 8. Be2 {[%clk 0:02:59]}  b6 {[%clk 0:02:53]} 9. O-O {[%clk 0:02:59]}  Bb7 {[%clk 0:02:53]} 10. Qc2 {[%clk 0:02:59]}  Qe7 {[%clk 0:02:46]} 11. Rfe1 {[%clk 0:02:59]}  Rad8 {[%clk 0:02:42]} 12. e4 {[%clk 0:02:56]}  dxe4 {[%clk 0:02:32]} 13. Nxe4 {[%clk 0:02:57]}  Nxe4 {[%clk 0:02:19]} 14. Qxe4 {[%clk 0:02:58]}  Bb4 {[%clk 0:02:19]} 15. Rf1 {[%clk 0:02:56]}  Ba3 {[%clk 0:02:07]} 16. Bc3 {[%clk 0:02:54]}  Bb4 {[%clk 0:02:06]} 17. Bb2 {[%clk 0:02:54]}  Ba3 {[%clk 0:02:06]} 18. Bxa3 {[%clk 0:02:54]}  Qxa3 {[%clk 0:02:06]} 19. Bd3 {[%clk 0:02:55]}  Nf6 {[%clk 0:02:05]} 20. Qe3 {[%clk 0:02:54]}  c5 {[%clk 0:02:04]} 21. dxc5 {[%clk 0:02:54]}  Bxf3 {[%clk 0:01:47]} 22. Qxf3 {[%clk 0:02:53]}  bxc5 {[%clk 0:01:45]} 23. Rfd1 {[%clk 0:02:52]}  h6 {[%clk 0:01:35]} 24. Qe2 {[%clk 0:02:51]}  Rd4 {[%clk 0:01:33]} 25. Bc2 {[%clk 0:02:38]}  Rfd8 {[%clk 0:01:32]} 26. Rxd4 {[%clk 0:02:37]}  Rxd4 {[%clk 0:01:30]} 27. g3 {[%clk 0:02:38]}  Qa5 {[%clk 0:01:21]} 28. Rd1 {[%clk 0:02:33]}  Qc3 {[%clk 0:01:21]} 29. Rxd4 {[%clk 0:02:31]}  Qxd4 {[%clk 0:01:15]} 30. Kg2 {[%clk 0:02:28]}  g6 {[%clk 0:01:11]} 31. Bd3 {[%clk 0:02:25]}  Kg7 {[%clk 0:01:09]} 32. h3 {[%clk 0:02:24]}  h5 {[%clk 0:01:08]} 33. Qe3 {[%clk 0:02:20]}  Qxe3 {[%clk 0:01:03]} 34. fxe3 {[%clk 0:02:21]}  a5 {[%clk 0:01:02]} 35. Kf3 {[%clk 0:02:21]}  e5 {[%clk 0:00:59]} 36. Ke2 {[%clk 0:02:20]}  Kf8 {[%clk 0:00:57]} 37. Kd2 {[%clk 0:02:20]}  Ke7 {[%clk 0:00:58]} 38. Kc3 {[%clk 0:02:20]}  Kd6 {[%clk 0:00:57]} 39. a3 {[%clk 0:02:20]}  Nd7 {[%clk 0:00:44]} 40. b4 {[%clk 0:02:19]}  axb4+ {[%clk 0:00:40]} 41. axb4 {[%clk 0:02:20]}  cxb4+ {[%clk 0:00:29]} 42. Kxb4 {[%clk 0:02:21]}  Nc5 {[%clk 0:00:30]} 43. Bc2 {[%clk 0:02:19]}  Kc6 {[%clk 0:00:29]} 44. g4 {[%clk 0:02:18]}  hxg4 {[%clk 0:00:28]} 45. hxg4 {[%clk 0:02:19]}  g5 {[%clk 0:00:29]} 46. Bf5 {[%clk 0:02:17]}  Kb6 {[%clk 0:00:27]} 47. Bh7 {[%clk 0:02:14]}  f6 {[%clk 0:00:27]} 48. Bg8 {[%clk 0:02:14]}  Nd3+ {[%clk 0:00:27]} 49. Kc3 {[%clk 0:02:13]}  Nc5 {[%clk 0:00:28]} 50. Kb4 {[%clk 0:02:12]}  Nd3+ {[%clk 0:00:28]} 51. Kc3 {[%clk 0:02:12]}  Nc5 {[%clk 0:00:29]} 52. Kb4 {[%clk 0:02:11]} 1/2-1/2


[Site "https://www.chess.com"]

[Event "Titled Tuesday Blitz July 4 Early 2023"]
[White "Durarbayli, Vasif"]
[Black "Koziorowicz, Michal"]
[WhiteFideId "13402935"]
[BlackFideId "21809194"]
[WhiteElo "2918"]
[BlackElo "2700"]
[Result "1-0"]
[Round "7"]
[TimeControl "180+2"]
[Date "2023.07.04"]
[WhiteClock "0:00:11"]
[BlackClock "0:00:05"]
[Board "14"]

1. e4 {[%clk 0:03:00]}  c5 {[%clk 0:02:58]} 2. Nf3 {[%clk 0:03:00]}  d6 {[%clk 0:02:58]} 3. d4 {[%clk 0:03:01]}  cxd4 {[%clk 0:02:59]} 4. Nxd4 {[%clk 0:03:01]}  Nf6 {[%clk 0:02:59]} 5. Nc3 {[%clk 0:03:02]}  g6 {[%clk 0:02:59]} 6. Be3 {[%clk 0:03:01]}  Bg7 {[%clk 0:03:00]} 7. f3 {[%clk 0:03:00]}  O-O {[%clk 0:03:00]} 8. Qd2 {[%clk 0:03:01]}  Nc6 {[%clk 0:03:00]} 9. Bc4 {[%clk 0:03:01]}  Bd7 {[%clk 0:03:00]} 10. g4 {[%clk 0:03:00]}  Ne5 {[%clk 0:03:00]} 11. Be2 {[%clk 0:03:00]}  Rc8 {[%clk 0:02:58]} 12. O-O-O {[%clk 0:03:00]}  Nc4 {[%clk 0:02:38]} 13. Bxc4 {[%clk 0:02:59]}  Rxc4 {[%clk 0:02:39]} 14. Kb1 {[%clk 0:03:00]}  a6 {[%clk 0:02:28]} 15. h4 {[%clk 0:02:52]}  h5 {[%clk 0:02:28]} 16. gxh5 {[%clk 0:02:30]}  Nxh5 {[%clk 0:02:28]} 17. Nde2 {[%clk 0:02:30]}  Be6 {[%clk 0:02:12]} 18. Bh6 {[%clk 0:02:25]}  Qb6 {[%clk 0:02:01]} 19. Bxg7 {[%clk 0:02:19]}  Kxg7 {[%clk 0:02:02]} 20. f4 {[%clk 0:02:10]}  Bg4 {[%clk 0:01:51]} 21. Nd5 {[%clk 0:01:22]}  Qc5 {[%clk 0:01:51]} 22. Rhg1 {[%clk 0:01:09]}  f5 {[%clk 0:00:58]} 23. exf5 {[%clk 0:00:51]}  gxf5 {[%clk 0:00:59]} 24. b3 {[%clk 0:00:31]}  Re4 {[%clk 0:00:47]} 25. Nec3 {[%clk 0:00:30]}  Re6 {[%clk 0:00:43]} 26. Rde1 {[%clk 0:00:24]}  Rxe1+ {[%clk 0:00:31]} 27. Rxe1 {[%clk 0:00:25]}  Kf7 {[%clk 0:00:30]} 28. Rxe7+ {[%clk 0:00:24]}  Kg8 {[%clk 0:00:29]} 29. Qe1 {[%clk 0:00:22]}  Ng7 {[%clk 0:00:25]} 30. h5 {[%clk 0:00:17]}  Bxh5 {[%clk 0:00:23]} 31. Rxb7 {[%clk 0:00:14]}  Qd4 {[%clk 0:00:13]} 32. Kb2 {[%clk 0:00:13]}  Bg4 {[%clk 0:00:10]} 33. Qh4 {[%clk 0:00:12]}  Nh5 {[%clk 0:00:08]} 34. Qg5+ {[%clk 0:00:11]}  Qg7 {[%clk 0:00:05]} 35. Rxg7+ {[%clk 0:00:11]} 1-0


[Site "https://www.chess.com"]

[Event "Titled Tuesday Blitz July 4 Early 2023"]
[White "Nguyen, Ngoc Truong Son"]
[Black "benny_aizenberg"]
[WhiteFideId "12401110"]
[WhiteElo "2914"]
[BlackElo "2657"]
[Result "0-1"]
[Round "7"]
[TimeControl "180+2"]
[Date "2023.07.04"]
[WhiteClock "0:00:16"]
[BlackClock "0:00:38"]
[Board "15"]

1. e4 {[%clk 0:02:57]}  c5 {[%clk 0:02:58]} 2. Nf3 {[%clk 0:02:56]}  d6 {[%clk 0:02:58]} 3. Nc3 {[%clk 0:02:50]}  Nf6 {[%clk 0:02:57]} 4. d4 {[%clk 0:02:49]}  cxd4 {[%clk 0:02:54]} 5. Nxd4 {[%clk 0:02:50]}  Nc6 {[%clk 0:02:44]} 6. Bg5 {[%clk 0:02:49]}  e6 {[%clk 0:02:43]} 7. Qd2 {[%clk 0:02:48]}  a6 {[%clk 0:02:41]} 8. O-O-O {[%clk 0:02:44]}  Bd7 {[%clk 0:02:42]} 9. f4 {[%clk 0:02:43]}  Be7 {[%clk 0:02:41]} 10. Nf3 {[%clk 0:02:38]}  b5 {[%clk 0:02:36]} 11. Bd3 {[%clk 0:02:34]}  Qb6 {[%clk 0:02:29]} 12. Kb1 {[%clk 0:02:33]}  b4 {[%clk 0:02:20]} 13. Ne2 {[%clk 0:02:25]}  a5 {[%clk 0:02:19]} 14. e5 {[%clk 0:02:01]}  dxe5 {[%clk 0:02:07]} 15. fxe5 {[%clk 0:02:01]}  Nd5 {[%clk 0:02:07]} 16. Be4 {[%clk 0:01:53]}  O-O-O {[%clk 0:01:49]} 17. Bxd5 {[%clk 0:01:50]}  exd5 {[%clk 0:01:47]} 18. Bxe7 {[%clk 0:01:32]}  Nxe7 {[%clk 0:01:47]} 19. Ned4 {[%clk 0:01:31]}  Kb7 {[%clk 0:01:43]} 20. Ng5 {[%clk 0:01:22]}  Rdf8 {[%clk 0:01:31]} 21. Rhf1 {[%clk 0:01:18]}  f6 {[%clk 0:01:31]} 22. exf6 {[%clk 0:01:00]}  Rxf6 {[%clk 0:01:29]} 23. Rxf6 {[%clk 0:00:45]}  gxf6 {[%clk 0:01:29]} 24. Ngf3 {[%clk 0:00:42]}  Ng6 {[%clk 0:01:21]} 25. Re1 {[%clk 0:00:41]}  Re8 {[%clk 0:01:19]} 26. Rxe8 {[%clk 0:00:40]}  Bxe8 {[%clk 0:01:20]} 27. Qe3 {[%clk 0:00:32]}  Bd7 {[%clk 0:01:08]} 28. b3 {[%clk 0:00:25]}  Qd6 {[%clk 0:00:45]} 29. g3 {[%clk 0:00:19]}  Ne5 {[%clk 0:00:44]} 30. Kb2 {[%clk 0:00:18]}  a4 {[%clk 0:00:40]} 31. bxa4 {[%clk 0:00:16]}  Nc4+ {[%clk 0:00:38]} 0-1


[Site "https://www.chess.com"]

[Event "Titled Tuesday Blitz July 4 Early 2023"]
[White "MKlose11"]
[Black "Grandelius, Nils"]
[BlackFideId "1710400"]
[WhiteElo "2632"]
[BlackElo "2910"]
[Result "1-0"]
[Round "7"]
[TimeControl "180+2"]
[Date "2023.07.04"]
[WhiteClock "0:00:19"]
[BlackClock "0:00:14"]
[Board "16"]

1. e4 {[%clk 0:02:57]}  c6 {[%clk 0:03:00]} 2. Nc3 {[%clk 0:02:53]}  d5 {[%clk 0:03:00]} 3. g3 {[%clk 0:02:54]}  dxe4 {[%clk 0:03:00]} 4. Nxe4 {[%clk 0:02:55]}  Nf6 {[%clk 0:03:00]} 5. Bg2 {[%clk 0:02:55]}  Nxe4 {[%clk 0:02:56]} 6. Bxe4 {[%clk 0:02:56]}  g6 {[%clk 0:02:56]} 7. Ne2 {[%clk 0:02:55]}  Bg7 {[%clk 0:02:56]} 8. d4 {[%clk 0:02:54]}  O-O {[%clk 0:02:49]} 9. O-O {[%clk 0:02:52]}  Nd7 {[%clk 0:02:46]} 10. Bg2 {[%clk 0:02:51]}  Nb6 {[%clk 0:02:42]} 11. c3 {[%clk 0:02:48]}  a5 {[%clk 0:02:41]} 12. a3 {[%clk 0:02:24]}  Be6 {[%clk 0:02:32]} 13. Nf4 {[%clk 0:02:23]}  Bc4 {[%clk 0:02:32]} 14. Re1 {[%clk 0:02:23]}  e5 {[%clk 0:02:27]} 15. dxe5 {[%clk 0:02:16]}  Qxd1 {[%clk 0:02:28]} 16. Rxd1 {[%clk 0:02:16]}  Bxe5 {[%clk 0:02:28]} 17. Be3 {[%clk 0:02:16]}  Na4 {[%clk 0:02:24]} 18. Rd2 {[%clk 0:02:16]}  Rfd8 {[%clk 0:02:10]} 19. Rad1 {[%clk 0:02:13]}  Bf6 {[%clk 0:02:10]} 20. Rxd8+ {[%clk 0:01:49]}  Rxd8 {[%clk 0:02:10]} 21. Rxd8+ {[%clk 0:01:49]}  Bxd8 {[%clk 0:02:11]} 22. Bc1 {[%clk 0:01:50]}  Bg5 {[%clk 0:02:07]} 23. Be4 {[%clk 0:01:48]}  Bxf4 {[%clk 0:01:58]} 24. gxf4 {[%clk 0:01:49]}  Nc5 {[%clk 0:01:54]} 25. Bc2 {[%clk 0:01:42]}  f5 {[%clk 0:01:37]} 26. b4 {[%clk 0:01:27]}  axb4 {[%clk 0:01:36]} 27. axb4 {[%clk 0:01:26]}  Nd7 {[%clk 0:01:36]} 28. Be3 {[%clk 0:01:24]}  Kf7 {[%clk 0:01:32]} 29. f3 {[%clk 0:01:22]}  Nf6 {[%clk 0:01:29]} 30. Kf2 {[%clk 0:01:18]}  Nd5 {[%clk 0:01:29]} 31. Bd2 {[%clk 0:01:19]}  Ke6 {[%clk 0:01:30]} 32. h4 {[%clk 0:01:14]}  Nf6 {[%clk 0:01:18]} 33. Be3 {[%clk 0:01:01]}  Kd5 {[%clk 0:01:08]} 34. Bd4 {[%clk 0:01:01]}  Nh5 {[%clk 0:01:09]} 35. Be5 {[%clk 0:00:56]}  h6 {[%clk 0:01:00]} 36. Bb1 {[%clk 0:00:53]}  Ke6 {[%clk 0:00:56]} 37. Bc2 {[%clk 0:00:40]}  b6 {[%clk 0:00:49]} 38. Bb1 {[%clk 0:00:34]}  c5 {[%clk 0:00:41]} 39. bxc5 {[%clk 0:00:32]}  bxc5 {[%clk 0:00:42]} 40. Bc2 {[%clk 0:00:32]}  Kd5 {[%clk 0:00:37]} 41. Ba4 {[%clk 0:00:32]}  g5 {[%clk 0:00:32]} 42. hxg5 {[%clk 0:00:29]}  hxg5 {[%clk 0:00:33]} 43. Be8 {[%clk 0:00:29]}  gxf4 {[%clk 0:00:27]} 44. Bh8 {[%clk 0:00:24]}  Bd3 {[%clk 0:00:13]} 45. Bxh5 {[%clk 0:00:23]}  Kc4 {[%clk 0:00:14]} 46. Bf7+ {[%clk 0:00:20]}  Kb5 {[%clk 0:00:14]} 47. Ke1 {[%clk 0:00:20]}  Ka4 {[%clk 0:00:11]} 48. Kd2 {[%clk 0:00:20]}  Bf1 {[%clk 0:00:12]} 49. Be5 {[%clk 0:00:20]}  Bg2 {[%clk 0:00:12]} 50. Bd5 {[%clk 0:00:20]}  Kb5 {[%clk 0:00:13]} 51. Bxf4 {[%clk 0:00:19]}  c4 {[%clk 0:00:13]} 52. Ke3 {[%clk 0:00:19]}  Kc5 {[%clk 0:00:14]} 53. Ba8 {[%clk 0:00:19]}  Bh1 {[%clk 0:00:15]} 54. Be5 {[%clk 0:00:18]}  Bg2 {[%clk 0:00:15]} 55. Bd4+ {[%clk 0:00:18]}  Kd6 {[%clk 0:00:15]} 56. Kf4 {[%clk 0:00:19]}  Ke6 {[%clk 0:00:15]} 57. Bc6 {[%clk 0:00:19]}  Bh3 {[%clk 0:00:15]} 58. Bb5 {[%clk 0:00:19]}  Kd5 {[%clk 0:00:14]} 59. Bd7 {[%clk 0:00:19]} 1-0


[Site "https://www.chess.com"]